bitfinex/quotes_BTCUSD_20220304
["timestamp","ask_amount","ask_price","bid_price","bid_amount"]
[1646382236057,0.54519899,41557.0,41553.0,0.25782486]
[1646382236255,0.29814697,41557.0,41553.0,0.15]
[1646382236899,0.29814697,41557.0,41554.0,0.365002]
[1646382237100,0.29814697,41557.0,41553.0,0.1]
[1646382237302,0.34783813,41560.0,41553.0,0.1]
[1646382237303,0.29814697,41558.0,41553.0,0.1]
[1646382237501,0.29814697,41558.0,41555.0,0.28023339]
[1646382237702,0.29814697,41558.0,41555.0,0.33023339]
[1646382238305,0.29814697,41559.0,41556.0,0.365002]
[1646382238504,0.29814697,41559.0,41555.0,0.33023339]
[1646382238802,0.00098476,41557.0,41556.0,0.365002]
[1646382239402,0.00098476,41557.0,41555.0,0.33023339]
[1646382239704,0.00098476,41557.0,41556.0,0.365002]
[1646382240552,0.24940491,41557.0,41556.0,0.365002]
[1646382240957,0.00098476,41557.0,41556.0,0.665002]
[1646382243858,0.00192169,41557.0,41556.0,0.665002]
[1646382245305,0.00192169,41557.0,41556.0,0.365002]
[1646382246106,0.00192169,41557.0,41556.0,0.5980613]
[1646382246306,0.00192169,41557.0,41556.0,0.9980613]
[1646382247506,0.00192169,41557.0,41556.0,0.8030613]
[1646382247961,0.00192169,41557.0,41556.0,0.270002]
[1646382248163,0.00192169,41557.0,41556.0,0.570002]
[1646382248361,0.00192169,41557.0,41556.0,0.470002]
[1646382248561,0.00192169,41557.0,41556.0,0.570002]
[1646382249362,0.00192169,41557.0,41556.0,0.61231255]
[1646382250364,0.00192169,41557.0,41556.0,0.570002]
[1646382251364,0.00192169,41557.0,41556.0,0.270002]
[1646382251803,0.00192169,41557.0,41556.0,0.23546795]
[1646382253005,0.00192169,41557.0,41556.0,0.13546795]
[1646382255206,0.00192169,41557.0,41555.0,0.05]
[1646382255665,0.20763294,41556.0,41553.0,0.05]
[1646382255867,0.29812902,41555.0,41553.0,0.05]
[1646382256067,0.29812902,41555.0,41552.0,0.15]
[1646382256266,0.5088241,41555.0,41553.0,0.365786]
[1646382256465,0.29812902,41555.0,41553.0,0.365786]
[1646382256765,0.29812902,41556.0,41554.0,0.15]
[1646382257664,0.51219237,41556.0,41554.0,0.15]
[1646382257867,0.51219237,41556.0,41550.0,0.1]
[1646382258064,0.51219237,41556.0,41550.0,0.415786]
[1646382258266,0.51219237,41556.0,41550.0,0.515786]
[1646382258267,0.29812902,41556.0,41550.0,0.515786]
[1646382258466,0.29812902,41556.0,41550.0,0.15]
[1646382258668,0.00093431,41554.0,41551.0,0.365786]
[1646382258866,0.24934989,41554.0,41553.0,0.365786]
[1646382259306,0.24934989,41554.0,41553.0,0.1]
[1646382259706,0.24934989,41554.0,41553.0,0.095]
[1646382259906,0.24934989,41554.0,41553.0,0.460786]
[1646382260108,0.24934989,41554.0,41553.0,0.095]
[1646382260306,0.24934989,41554.0,41549.0,0.3511]
[1646382260507,0.24934989,41554.0,41549.0,0.3011]
[1646382260709,0.24841558,41553.0,41551.0,0.28532355]
[1646382260907,0.24841558,41553.0,41550.0,0.365786]
[1646382261109,0.24934989,41554.0,41549.0,0.3011]
[1646382261315,0.24841558,41553.0,41549.0,0.3011]
[1646382261910,0.26625544,41551.0,41550.0,0.365786]
[1646382262108,0.00093431,41554.0,41549.0,0.0011]
[1646382262109,0.24841558,41552.0,41549.0,0.0011]
[1646382262710,0.24841558,41553.0,41549.0,0.1011]
[1646382262952,0.00093431,41554.0,41549.0,0.1011]
[1646382262953,0.24841558,41552.0,41549.0,0.1011]
[1646382263152,0.24841558,41552.0,41550.0,0.365786]
[1646382263356,0.24841558,41552.0,41551.0,0.365786]
[1646382263752,0.24934815,41552.0,41551.0,0.05]
[1646382264152,0.24934815,41552.0,41549.0,0.1511]
[1646382264553,0.24934815,41552.0,41549.0,0.1011]
[1646382264752,0.45651244,41552.0,41550.0,0.365786]
[1646382265151,0.20809686,41552.0,41549.0,0.1011]
[1646382265552,0.39360142,41552.0,41549.0,0.1011]
[1646382265952,0.642017,41552.0,41549.0,0.1011]
[1646382266801,0.642017,41552.0,41549.0,0.0011]
[1646382266802,0.52757502,41551.0,41549.0,0.0011]
[1646382267005,0.42934313,41550.0,41549.0,0.0011]
[1646382267202,0.49802615,41550.0,41549.0,0.0011]
[1646382267403,0.29812902,41550.0,41549.0,0.0011]
[1646382268101,0.29812902,41551.0,41549.0,0.0011]
[1646382268503,0.19265872,41550.0,41549.0,0.0011]
[1646382268803,0.29906072,41551.0,41549.0,0.0011]
[1646382269003,0.24135286,41550.0,41549.0,0.0011]
[1646382269207,0.29906072,41551.0,41549.0,0.0011]
[1646382270560,0.24841062,41550.0,41549.0,0.0011]
[1646382271959,0.24934232,41551.0,41549.0,0.1]
[1646382272159,0.0009317,41551.0,41549.0,0.465786]
[1646382273159,0.0009317,41551.0,41549.0,0.515786]
[1646382273459,0.0009317,41551.0,41550.0,0.59866077]
[1646382273861,0.24841062,41552.0,41551.0,0.365786]
[1646382274308,0.24841062,41553.0,41551.0,0.515786]
[1646382274505,0.29812902,41555.0,41551.0,0.515786]
[1646382274506,0.24841062,41555.0,41551.0,0.563886]
[1646382274705,0.25041062,41556.0,41553.0,0.365786]
[1646382274905,0.25041062,41556.0,41555.0,0.365786]
[1646382275105,0.25041062,41556.0,41555.0,0.413886]
[1646382275306,0.24841062,41556.0,41555.0,0.76305222]
[1646382275607,0.24841062,41557.0,41555.0,0.76305222]
[1646382275805,0.24841062,41558.0,41556.0,0.1]
[1646382276005,0.24841062,41558.0,41557.0,0.413886]
[1646382276206,0.24841062,41558.0,41557.0,0.83184556]
[1646382276405,0.24841062,41558.0,41557.0,0.8866163]
[1646382276811,0.24841062,41558.0,41557.0,0.83184556]
[1646382278062,0.24841062,41558.0,41557.0,0.563886]
[1646382278663,0.12308424,41568.0,41557.0,0.563886]
[1646382278664,0.29812902,41559.0,41557.0,0.563886]
[1646382278963,0.29812902,41559.0,41558.0,0.465786]
[1646382279162,0.29812902,41559.0,41558.0,0.73141449]
[1646382279563,0.29812902,41560.0,41558.0,0.73141449]
[1646382279762,0.29812902,41560.0,41559.0,0.365786]
[1646382279962,0.29812902,41560.0,41559.0,0.413886]
[1646382280165,0.29812902,41560.0,41559.0,0.563886]
[1646382283104,0.29812902,41560.0,41559.0,0.1981]
[1646382283304,0.29812902,41560.0,41559.0,0.0981]
[1646382283505,0.29812902,41560.0,41559.0,0.463886]
[1646382283704,0.29812902,41560.0,41559.0,0.563886]
[1646382284304,0.00140432,41561.0,41559.0,0.563886]
[1646382284305,0.29953334,41561.0,41559.0,0.563886]
[1646382284507,0.29953334,41561.0,41560.0,0.465786]
[1646382284705,0.29953334,41561.0,41560.0,0.513886]
[1646382284904,0.29953334,41561.0,41560.0,0.813886]
[1646382285109,0.00140432,41561.0,41560.0,0.85619655]
[1646382285318,0.00140432,41561.0,41560.0,2.19519655]
[1646382288258,0.00140432,41561.0,41560.0,1.45709655]
[1646382288659,0.00140432,41561.0,41560.0,1.414786]
[1646382290007,0.00140432,41561.0,41560.0,1.4145182]
[1646382295169,0.34783813,41570.0,41561.0,0.00280863]
[1646382295369,0.34783813,41570.0,41566.0,0.6009]
[1646382295370,0.26810382,41568.0,41566.0,0.6009]
[1646382295571,0.26810382,41568.0,41567.0,0.0481]
[1646382295770,0.34783813,41570.0,41567.0,0.1481]
[1646382295971,0.34783813,41569.0,41567.0,0.1481]
[1646382296570,0.21460384,41572.0,41567.0,0.1481]
[1646382296571,0.34783813,41568.0,41567.0,0.1481]
[1646382296807,0.34783813,41568.0,41567.0,0.0481]
[1646382297007,0.34783813,41568.0,41567.0,0.1481]
[1646382297608,0.34783813,41568.0,41567.0,0.0481]
[1646382298209,0.00495372,41566.0,41563.0,0.15]
[1646382298809,0.00495372,41566.0,41564.0,0.365786]
[1646382299210,0.00495372,41566.0,41564.0,0.415786]
[1646382299410,0.00495372,41566.0,41564.0,0.05]
[1646382299810,0.00495372,41566.0,41564.0,0.365786]
[1646382300016,0.00495372,41566.0,41563.0,0.1]
[1646382300215,0.00495372,41566.0,41562.0,0.05]
[1646382300216,0.34783813,41565.0,41562.0,0.05]
[1646382300466,0.34783813,41565.0,41561.0,0.10280863]
[1646382300467,0.34783813,41565.0,41561.0,0.15280863]
[1646382300863,0.34783813,41564.0,41561.0,0.15280863]
[1646382301466,0.34783813,41564.0,41561.0,0.05280863]
[1646382301865,0.29783813,41564.0,41561.0,0.00280863]
[1646382302466,0.29783813,41564.0,41561.0,0.21981872]
[1646382302670,0.29783813,41564.0,41562.0,0.365786]
[1646382302865,0.00595372,41566.0,41562.0,0.23574642]
[1646382303065,0.00595372,41566.0,41561.0,0.26981872]
[1646382303466,0.00495372,41566.0,41561.0,0.26981872]
[1646382304312,0.00495372,41566.0,41562.0,0.290316]
[1646382304513,0.00495372,41566.0,41562.0,0.30151706]
[1646382304712,0.00495372,41566.0,41562.0,0.40151706]
[1646382305513,0.00495372,41566.0,41564.0,0.2543475]
[1646382305714,0.00495372,41566.0,41565.0,0.3]
[1646382306113,0.00495372,41566.0,41565.0,0.4]
[1646382306714,0.00495372,41566.0,41565.0,0.1]
[1646382306913,0.00495372,41566.0,41565.0,0.4]
[1646382307314,0.00495372,41566.0,41565.0,0.67759941]
[1646382308778,0.00495372,41566.0,41565.0,0.4]
[1646382309177,0.00495372,41566.0,41565.0,0.40151521]
[1646382310177,0.00495372,41566.0,41565.0,0.10151521]
[1646382310581,0.00495372,41566.0,41565.0,0.00151521]
[1646382312209,0.30289629,41566.0,41565.0,0.00151521]
[1646382313012,0.00495372,41566.0,41565.0,0.00151521]
[1646382313213,0.35255385,41566.0,41565.0,0.00151521]
[1646382314310,0.35255385,41566.0,41561.0,0.21981872]
[1646382314510,0.35255385,41566.0,41561.0,0.05280863]
[1646382314711,0.34760013,41565.0,41561.0,0.00280863]
[1646382314912,0.23418242,41563.0,41561.0,0.00280863]
[1646382315111,0.58178255,41563.0,41561.0,0.00280863]
[1646382315559,0.76566497,41563.0,41561.0,0.00280863]
[1646382316162,0.02484534,41562.0,41561.0,0.00280863]
[1646382317563,0.02484534,41562.0,41561.0,0.36859463]
[1646382318165,0.28173468,41562.0,41561.0,0.36859463]
[1646382318566,0.28173468,41562.0,41561.0,0.00280863]
[1646382319423,0.48592812,41562.0,41561.0,0.00280863]
[1646382321925,0.78592812,41562.0,41561.0,0.00280863]
[1646382322126,0.71537412,41562.0,41561.0,0.00280863]
[1646382322325,0.71537412,41562.0,41552.0,0.1]
[1646382322326,1.45,41561.0,41552.0,0.1]
[1646382322528,0.29822592,41553.0,41552.0,0.1]
[1646382322727,0.34793024,41555.0,41552.0,0.1]
[1646382323163,0.29818598,41553.0,41552.0,0.1]
[1646382323361,1.41263505,41553.0,41552.0,0.1]
[1646382323563,1.00992333,41553.0,41552.0,0.1]
[1646382323763,1.30992333,41553.0,41552.0,0.1]
[1646382324561,1.12010011,41553.0,41552.0,0.1]
[1646382324763,0.82010011,41553.0,41552.0,0.1]
[1646382325361,1.12010011,41553.0,41552.0,0.1]
[1646382325561,1.05412993,41553.0,41552.0,0.1]
[1646382326367,1.05412993,41553.0,41543.0,0.0011]
[1646382326368,1.679446,41552.0,41543.0,0.0011]
[1646382326568,0.7658118,41545.0,41543.0,0.0011]
[1646382326825,0.229446,41544.0,41543.0,0.0011]
[1646382327221,0.80675516,41544.0,41543.0,0.0011]
[1646382329426,0.85485516,41544.0,41543.0,0.0011]
[1646382329625,1.15277902,41544.0,41543.0,0.0011]
[1646382330030,1.45,41543.0,41531.0,0.01]
[1646382330229,0.18404744,41532.0,41518.0,0.0031]
[1646382330470,0.48134941,41523.0,41518.0,0.0031]
[1646382330665,0.229446,41521.0,41518.0,0.0031]
[1646382331270,0.529446,41521.0,41518.0,0.0031]
[1646382331469,0.577546,41521.0,41518.0,0.0031]
[1646382331665,0.277546,41521.0,41518.0,0.0031]
[1646382332064,0.577546,41521.0,41518.0,0.0031]
[1646382332969,0.277546,41521.0,41518.0,0.0031]
[1646382333366,0.82523545,41521.0,41518.0,0.0031]
[1646382333567,0.57523545,41521.0,41518.0,0.0031]
[1646382333768,0.67523545,41521.0,41518.0,0.0031]
[1646382334218,0.52523545,41521.0,41518.0,0.0031]
[1646382334419,0.37523545,41521.0,41518.0,0.0031]
[1646382334621,0.14578945,41521.0,41518.0,0.0031]
[1646382334818,0.37523545,41521.0,41520.0,0.00520293]
[1646382335219,1.45,41520.0,41518.0,0.0021]
[1646382335421,0.3481,41519.0,41518.0,0.0021]
[1646382335619,0.427546,41519.0,41518.0,0.0021]
[1646382335819,0.427546,41519.0,41516.0,0.001]
[1646382335820,1.4,41518.0,41516.0,0.001]
[1646382336018,0.529446,41517.0,41516.0,0.001]
[1646382336218,0.229446,41517.0,41516.0,0.001]
[1646382337966,0.279446,41517.0,41516.0,0.001]
[1646382338965,0.279446,41517.0,41514.0,0.0021]
[1646382339169,1.179446,41516.0,41514.0,0.0002]
[1646382340066,0.23736955,41515.0,41514.0,0.0002]
[1646382340365,0.23736955,41515.0,41507.0,0.0021]
[1646382340366,0.229446,41511.0,41504.0,0.19822696]
[1646382340566,0.23736955,41515.0,41511.0,0.30153865]
[1646382340766,1.92953724,41515.0,41511.0,0.30153865]
[1646382342015,0.23736955,41515.0,41511.0,0.30153865]
[1646382343115,0.23736955,41515.0,41512.0,0.21140484]
[1646382343516,0.23736955,41515.0,41511.0,0.30153865]
[1646382343517,0.01210397,41514.0,41511.0,0.30153865]
[1646382343715,0.23736955,41515.0,41511.0,0.30153865]
[1646382343917,2.3087747,41515.0,41511.0,0.30153865]
[1646382344117,2.32313652,41515.0,41511.0,0.30153865]
[1646382344319,0.23736955,41515.0,41511.0,0.30153865]
[1646382344517,0.23736955,41515.0,41513.0,0.21128453]
[1646382344716,0.0010035,41514.0,41513.0,0.21128453]
[1646382344916,0.0010035,41514.0,41511.0,0.30153865]
[1646382345560,0.17444983,41513.0,41511.0,0.30153865]
[1646382345960,2.51307817,41512.0,41511.0,0.30153865]
[1646382347762,2.61307817,41512.0,41511.0,0.30153865]
[1646382348560,2.76307817,41512.0,41511.0,0.30153865]
[1646382348761,2.61307817,41512.0,41511.0,0.30153865]
[1646382349065,2.61407992,41512.0,41511.0,0.30153865]
[1646382349714,1.45,41511.0,41502.0,0.01204]
[1646382349915,0.0602993,41507.0,41502.0,0.01204]
[1646382350116,0.0602993,41507.0,41502.0,0.00624688]
[1646382350713,0.21620536,41503.0,41502.0,0.00624688]
[1646382350915,0.2185201,41505.0,41502.0,0.00624688]
[1646382351115,0.2685201,41505.0,41502.0,0.00624688]
[1646382352013,0.19131071,41504.0,41502.0,0.00624688]
[1646382352414,0.65304416,41503.0,41501.0,0.0111]
[1646382352614,0.65304416,41503.0,41500.0,14.182989]
[1646382352615,0.0481,41503.0,41500.0,14.182989]
[1646382353069,0.080298,41506.0,41500.0,14.182989]
[1646382353070,0.0681,41506.0,41500.0,14.182989]
[1646382353666,0.16943775,41504.0,41500.0,14.182989]
[1646382353870,0.0681,41506.0,41500.0,14.182989]
[1646382353871,0.0481,41503.0,41500.0,14.182989]
[1646382354869,0.20852183,41502.0,41500.0,14.182989]
[1646382355066,0.15831142,41501.0,41500.0,14.182989]
[1646382355268,0.83830007,41501.0,41500.0,7.73372663]
[1646382355469,0.83830007,41501.0,41500.0,4.37867768]
[1646382355470,1.03640007,41501.0,41500.0,4.37867768]
[1646382355666,1.03640007,41501.0,41481.0,0.00551229]
[1646382355870,2.19634,41500.0,41483.0,0.18631444]
[1646382356066,2.19634,41500.0,41481.0,0.00551229]
[1646382356067,0.108412,41499.0,41481.0,0.00551229]
[1646382356270,0.35,41498.0,41481.0,0.00551229]
[1646382356467,1.5584183,41497.0,41490.0,8.3e-06]
[1646382356731,1.6584183,41497.0,41490.0,8.3e-06]
[1646382357325,0.15,41496.0,41490.0,8.3e-06]
[1646382357528,0.36173301,41495.0,41490.0,8.3e-06]
[1646382357723,0.120652,41493.0,41490.0,8.3e-06]
[1646382357925,0.01267287,41491.0,41490.0,8.3e-06]
[1646382358123,0.3481,41492.0,41490.0,8.3e-06]
[1646382358324,0.41365214,41491.0,41490.0,8.3e-06]
[1646382358623,0.4,41491.0,41490.0,8.3e-06]
[1646382358828,1.45,41489.0,41477.0,0.00062059]
[1646382359026,1.45,41489.0,41473.0,0.001]
[1646382359027,0.794639,41486.0,41473.0,0.001]
[1646382359225,0.794639,41486.0,41471.0,0.01]
[1646382359226,0.7343,41481.0,41471.0,0.01]
[1646382359425,0.7343,41481.0,41460.0,0.01305]
[1646382359426,1.45,41478.0,41460.0,0.01305]
[1646382359626,1.0652245,41477.0,41460.0,0.001]
[1646382359827,0.74782373,41476.0,41460.0,0.001]
[1646382360029,0.01346169,41475.0,41458.0,0.00030603]
[1646382360226,0.16346169,41475.0,41458.0,0.00030603]
[1646382360476,0.24354602,41462.0,41458.0,0.00030603]
[1646382360677,0.05,41462.0,41458.0,0.00030603]
[1646382360878,0.3188745,41474.0,41461.0,0.19143604]
[1646382360879,0.15452197,41470.0,41461.0,0.19143604]
[1646382361087,0.7343,41472.0,41461.0,0.19143604]
[1646382361278,0.1,41473.0,41461.0,0.19143604]
[1646382361280,0.01159927,41469.0,41461.0,0.19143604]
[1646382361481,0.05,41470.0,41461.0,0.19143604]
[1646382361681,0.05,41471.0,41461.0,0.19143604]
[1646382361877,0.0149473,41472.0,41461.0,0.19143604]
[1646382361878,0.01400845,41472.0,41461.0,0.19143604]
[1646382362079,0.05,41473.0,41468.0,0.16612585]
[1646382362280,0.06315279,41475.0,41468.0,0.16612585]
[1646382362477,0.060339,41480.0,41468.0,0.16612585]
[1646382362478,0.0481,41479.0,41468.0,0.16612585]
[1646382362683,0.33463183,41479.0,41474.0,0.28731252]
[1646382362877,0.33463183,41479.0,41468.0,0.16612585]
[1646382363281,0.34624305,41479.0,41468.0,0.16612585]
[1646382363479,0.34624305,41479.0,41458.0,0.01205]
[1646382363480,0.01148846,41477.0,41458.0,0.01205]
[1646382363679,1.06466296,41477.0,41457.0,0.152]
[1646382363881,0.01019254,41476.0,41467.0,0.21258468]
[1646382364079,0.00090844,41469.0,41457.0,0.152]
[1646382364513,0.20044457,41469.0,41460.0,0.18365318]
[1646382364714,0.23562582,41469.0,41460.0,0.18365318]
[1646382364913,0.20900707,41468.0,41460.0,0.18365318]
[1646382365113,0.20900707,41468.0,41457.0,0.152]
[1646382365114,0.52788157,41468.0,41457.0,0.002]
[1646382365321,0.01328213,41465.0,41454.0,0.00030952]
[1646382365517,0.01328213,41465.0,41445.0,0.2499]
[1646382365518,1.45,41458.0,41443.0,0.4494]
[1646382365715,0.15,41444.0,41416.0,0.84197128]
[1646382365917,1.46177973,41452.0,41417.0,0.366153]
[1646382365918,0.3188745,41443.0,41417.0,0.366153]
[1646382366114,0.16817083,41426.0,41417.0,0.16327556]
[1646382366316,0.01045986,41435.0,41413.0,0.0481]
[1646382366513,0.3688745,41436.0,41413.0,0.298]
[1646382366715,0.3688745,41436.0,41413.0,0.0481]
[1646382366716,0.01473395,41432.0,41413.0,0.0481]
[1646382366914,0.3688745,41436.0,41420.0,0.0525514]
[1646382366915,0.01530549,41433.0,41420.0,0.0525514]
[1646382367117,0.01530549,41433.0,41411.0,0.01]
[1646382367118,0.28430202,41426.0,41411.0,0.01]
[1646382367319,0.01234065,41424.0,41415.0,0.0011]
[1646382367518,1.45,41418.0,41404.0,0.2499]
[1646382367718,0.05,41417.0,41404.0,0.2499]
[1646382367984,0.06042871,41422.0,41401.0,0.01207]
[1646382367985,0.01560751,41423.0,41415.0,0.001]
[1646382368174,0.1,41434.0,41415.0,0.001]
[1646382368374,0.15,41430.0,41416.0,0.0481]
[1646382368574,0.01306337,41426.0,41415.0,0.001]
[1646382368775,0.31785822,41425.0,41417.0,0.18592247]
[1646382368974,0.34267943,41424.0,41418.0,0.00181302]
[1646382369174,0.02506164,41423.0,41418.0,0.00181302]
[1646382369376,0.02506164,41423.0,41406.0,0.2499]
[1646382369377,0.15,41420.0,41406.0,0.2499]
[1646382369574,0.35178269,41419.0,41406.0,0.2499]
[1646382369775,0.07634943,41417.0,41406.0,0.2499]
[1646382369980,0.01265126,41418.0,41381.0,0.01]
[1646382369981,1.45,41402.0,41381.0,0.01]
[1646382370180,0.04067,41387.0,41381.0,0.01]
[1646382370380,0.04067,41387.0,41384.0,0.06486827]
[1646382370589,0.5071,41401.0,41384.0,0.06486827]
[1646382370590,0.0481,41403.0,41385.0,0.52936065]
[1646382370776,0.0481,41403.0,41386.0,0.6850275]
[1646382370777,0.01149539,41402.0,41386.0,0.6850275]
[1646382370980,0.01025897,41407.0,41387.0,0.01207]
[1646382371177,0.01025897,41407.0,41388.0,0.366153]
[1646382371178,0.05,41407.0,41388.0,0.366153]
[1646382371379,0.01206491,41404.0,41387.0,0.01207]
[1646382371585,0.3669745,41406.0,41387.0,0.01207]
[1646382371586,0.3669745,41406.0,41402.0,0.21778249]
[1646382371829,0.3669745,41406.0,41386.0,0.2499]
[1646382371830,0.12878562,41391.0,41386.0,0.2499]
[1646382372029,0.12878562,41391.0,41387.0,0.366153]
[1646382372230,0.12878562,41391.0,41388.0,0.26898039]
[1646382372429,0.12878562,41391.0,41390.0,0.04231055]
[1646382372630,0.12878562,41391.0,41390.0,0.52812903]
[1646382372836,0.12878562,41391.0,41390.0,0.70189092]
[1646382373634,0.12878562,41391.0,41390.0,0.98208496]
[1646382373835,0.12878562,41391.0,41390.0,0.92423971]
[1646382374237,0.12878562,41391.0,41390.0,1.02423971]
[1646382375139,0.12878562,41391.0,41390.0,1.09103335]
[1646382376167,0.46380994,41399.0,41392.0,0.366153]
[1646382376670,0.02829831,41399.0,41392.0,0.366153]
[1646382376870,0.02829831,41399.0,41394.0,0.366153]
[1646382377068,0.02829831,41399.0,41394.0,0.351153]
[1646382377369,0.00175251,41401.0,41392.0,0.05]
[1646382377370,0.00175251,41401.0,41398.0,0.367097]
[1646382377570,0.00175251,41401.0,41400.0,0.367097]
[1646382377769,0.01207,41421.0,41402.0,0.75845]
[1646382377970,0.5312,41433.0,41408.0,1.125547]
[1646382377971,0.01207,41427.0,41408.0,1.125547]
[1646382378169,0.01207,41431.0,41410.0,0.367097]
[1646382378375,0.015,41433.0,41412.0,0.367097]
[1646382378376,0.01207,41432.0,41412.0,0.367097]
[1646382378571,0.01207,41432.0,41417.0,0.391247]
[1646382378771,0.01207,41432.0,41423.0,0.62505]
[1646382379070,0.015,41433.0,41421.0,0.04231055]
[1646382379071,0.015,41433.0,41430.0,0.18021435]
[1646382379339,0.015,41433.0,41425.0,0.02415]
[1646382379340,0.015,41433.0,41432.0,0.6009]
[1646382379541,0.015,41433.0,41432.0,1.016097]
[1646382379939,0.015,41433.0,41424.0,0.49621042]
[1646382379940,0.015,41433.0,41424.0,0.2499]
[1646382380143,0.015,41433.0,41425.0,0.53675211]
[1646382380343,0.015,41433.0,41427.0,0.366797]
[1646382380544,0.015,41433.0,41427.0,0.414897]
[1646382380942,0.015,41433.0,41427.0,0.439047]
[1646382381340,0.05,41435.0,41427.0,0.07225]
[1646382381540,0.05,41435.0,41431.0,0.366797]
[1646382381740,0.05,41435.0,41432.0,0.0481]
[1646382381942,0.05,41435.0,41433.0,0.0481]
[1646382382141,0.05,41435.0,41434.0,0.0481]
[1646382382343,0.62646711,41435.0,41434.0,0.0481]
[1646382382543,0.67646711,41435.0,41434.0,0.0481]
[1646382382981,0.67646711,41435.0,41429.0,0.0511]
[1646382382982,0.0407527,41433.0,41429.0,0.0511]
[1646382383180,0.0407527,41433.0,41429.0,0.003]
[1646382383181,0.16779772,41432.0,41429.0,0.003]
[1646382383380,0.366797,41431.0,41429.0,0.003]
[1646382383586,0.16779772,41432.0,41429.0,0.003]
[1646382383587,0.15,41430.0,41429.0,0.003]
[1646382383880,0.05,41431.0,41414.0,6.013e-05]
[1646382384082,0.15,41425.0,41414.0,6.013e-05]
[1646382384283,0.17445256,41420.0,41414.0,6.013e-05]
[1646382384479,0.17445256,41420.0,41415.0,0.26162323]
[1646382384682,0.05,41425.0,41416.0,0.366797]
[1646382384683,0.2,41425.0,41416.0,0.366797]
[1646382384880,0.2,41425.0,41416.0,0.73540032]
[1646382385079,0.05,41425.0,41416.0,0.73540032]
[1646382385279,0.01207,41430.0,41416.0,0.73540032]
[1646382385481,0.5267527,41433.0,41427.0,0.24971335]
[1646382385482,0.6767527,41433.0,41427.0,0.24971335]
[1646382385681,0.6767527,41433.0,41418.0,0.02415]
[1646382385682,0.16777984,41432.0,41418.0,0.02415]
[1646382385881,0.16777984,41432.0,41414.0,6.013e-05]
[1646382385882,0.15,41430.0,41414.0,6.013e-05]
[1646382386083,0.15,41430.0,41417.0,0.1]
[1646382386281,0.15,41430.0,41419.0,0.20419546]
[1646382386580,0.2865267,41428.0,41422.0,0.2447261]
[1646382386814,0.16680835,41425.0,41422.0,0.2688761]
[1646382387014,0.2,41430.0,41422.0,0.2688761]
[1646382387215,0.15,41430.0,41422.0,0.2447261]
[1646382387613,0.15,41430.0,41419.0,0.20419546]
[1646382388014,0.15492214,41427.0,41419.0,0.20419546]
[1646382388215,0.15492214,41427.0,41414.0,0.1]
[1646382388414,0.15492214,41427.0,41415.0,0.366797]
[1646382388616,0.15492214,41427.0,41421.0,0.22750506]
[1646382388816,0.15492214,41427.0,41417.0,0.366797]
[1646382389215,0.15492214,41427.0,41419.0,0.19920442]
[1646382389514,0.15492214,41427.0,41418.0,0.02415]
[1646382389714,0.15492214,41427.0,41422.0,0.21512753]
[1646382389915,0.15492214,41427.0,41418.0,0.02415]
[1646382390314,0.15492214,41427.0,41420.0,0.19880282]
[1646382390762,0.05,41426.0,41420.0,0.02415]
[1646382390962,0.05,41426.0,41420.0,0.23064218]
[1646382391167,0.05,41426.0,41414.0,0.004]
[1646382391168,0.2,41426.0,41418.0,0.02415]
[1646382391362,0.2,41426.0,41416.0,0.02415]
[1646382391363,0.15,41425.0,41416.0,0.02415]
[1646382391565,0.05,41426.0,41416.0,0.02415]
[1646382391763,0.15,41425.0,41418.0,0.02415]
[1646382391964,0.15,41425.0,41413.0,0.366797]
[1646382392263,0.17327306,41420.0,41412.0,0.1]
[1646382392464,0.414897,41419.0,41412.0,0.1]
[1646382392664,0.414897,41419.0,41415.0,0.005]
[1646382392867,0.15,41416.0,41415.0,0.005]
[1646382393063,0.00677107,41413.0,41412.0,0.1]
[1646382393264,0.23020428,41413.0,41412.0,0.1]
[1646382394219,0.21506028,41413.0,41412.0,0.1]
[1646382394424,0.2708561,41413.0,41412.0,0.1]
[1646382394619,0.6376531,41413.0,41412.0,0.1]
[1646382395419,0.00677107,41413.0,41412.0,0.1]
[1646382395921,0.00677107,41413.0,41412.0,0.09990888]
[1646382396421,0.24016042,41413.0,41412.0,0.09990888]
[1646382397021,0.60695742,41413.0,41412.0,0.09990888]
[1646382397219,0.81756191,41413.0,41412.0,0.09990888]
[1646382397622,0.45076491,41413.0,41412.0,0.09990888]
[1646382397821,0.81756191,41413.0,41412.0,0.09990888]
[1646382398664,0.81756191,41413.0,41396.0,0.4489]
[1646382398665,0.366797,41412.0,41396.0,0.4489]
[1646382398866,0.366797,41412.0,41396.0,0.366797]
[1646382398867,0.27359928,41400.0,41396.0,0.366797]
[1646382399068,0.16442069,41400.0,41397.0,0.366797]
[1646382399263,0.16442069,41400.0,41394.0,0.3420205]
[1646382399464,0.16442069,41400.0,41390.0,0.02515]
[1646382399664,0.16442069,41400.0,41390.0,0.001]
[1646382400063,0.16442069,41400.0,41393.0,0.22068752]
[1646382400264,0.15,41405.0,41395.0,0.21640013]
[1646382400466,0.15,41405.0,41394.0,0.3420205]
[1646382400666,0.15,41405.0,41393.0,0.22068752]
[1646382401065,0.15,41405.0,41394.0,0.3420205]
[1646382401266,0.28729269,41403.0,41394.0,0.3420205]
[1646382401469,0.28729269,41403.0,41394.0,0.21571659]
[1646382401715,0.28729269,41403.0,41394.0,0.3420205]
[1646382401913,0.28729269,41403.0,41393.0,0.22068752]
[1646382402315,0.15,41402.0,41390.0,0.001]
[1646382402514,0.15,41402.0,41392.0,0.004]
[1646382402715,0.17262369,41397.0,41392.0,0.004]
[1646382403515,0.24544648,41396.0,41392.0,0.004]
[1646382403716,0.15,41396.0,41392.0,0.004]
[1646382403918,0.3420205,41401.0,41382.0,0.1]
[1646382403919,0.95,41390.0,41382.0,0.1]
[1646382404118,0.165144,41383.0,41382.0,0.1]
[1646382404325,0.516797,41383.0,41382.0,0.1]
[1646382404717,0.15,41385.0,41382.0,0.1]
[1646382405564,0.366797,41384.0,41382.0,0.1]
[1646382406764,0.366797,41383.0,41382.0,0.1]